Cogmind - Beta 14 @@@ ROGUE MODE // 2025.03.29 @ 16:23:08 Player: shockman27 Result: Destroyed by D-53 Grenadier with Mini Grenade Launcher Performance ------------- Evolutions (0) 0 Regions Visited (2) 400 Robots Destroyed (26) 130 Value Destroyed (492) 492 Prototype IDs (2) 40 Alien Tech Used (0) 0 Bonus (0) 0 TOTAL SCORE: 1062 Bonus ------- None Cogmind --------- Core Integrity 0/250 Matter 300/300 Energy 250/250 System Corruption 0% Temperature Cool (0) Movement Core (450) Ox8 Location -10/Mines Parts ------- > --- POWER (1) -------- Ion Engine > --- PROPULSION (2) --- (None) > --- UTILITY (2) ------ Large Storage Unit Signal Interpreter > --- WEAPON (2) ------- (None) > --- INVENTORY (15) --- Ion Engine Light Treads Improved Treads Improved Heat Sink Small Storage Unit Structural Scanner Advanced Visual Processing Unit ECM Suite Light Armor Plating Hacking Suite Particle Cannon Particle Cannon Particle Cannon Grenade Launcher Mining Laser Peak State ------------ > --- POWER ------------ Ion Engine > --- PROPULSION ------- Improved Treads Improved Treads > --- UTILITY ---------- Large Storage Unit Signal Interpreter > --- WEAPON ----------- Particle Cannon Shotgun > --- INVENTORY -------- Ion Engine Light Treads Improved Treads Improved Heat Sink Small Storage Unit Structural Scanner ECM Suite Light Armor Plating Hacking Suite Particle Cannon Particle Cannon Particle Cannon Grenade Launcher [Rating: 13] Favorites ----------- Power Ion Engine Engine Ion Engine Propulsion Improved Treads Treads Improved Treads Leg Aluminum Leg Utility Large Storage Unit Device Structural Scanner Storage Large Storage Unit Processor Signal Interpreter Weapon Particle Cannon Energy Gun Small Laser Energy Cannon Particle Cannon Ballistic Gun Assault Rifle Launcher Grenade Launcher Special Weapon Welding Torch Build | -11 -10 -10 ------- Run | Yrd Mat Min Slots Evolved . | . . . Power . | . . . Propulsion . | . . . Utility . | . . . Weapon . | . . . Parts Attached 27 | 9 17 1 Power 6 | 1 4 1 Engine 6 | 1 4 1 Core . | . . . Reactor . | . . . Propulsion 7 | 4 3 . Treads 5 | 2 3 . Leg 2 | 2 . . Wheel . | . . . Hover . | . . . Flight . | . . . Utility 5 | 2 3 . Device 2 | 1 1 . Storage 2 | 1 1 . Processor 1 | . 1 . Hackware . | . . . Protection . | . . . Artifact . | . . . Weapon 9 | 2 7 . Energy Gun 1 | . 1 . Energy Cannon 2 | . 2 . Ballistic Gun 4 | 2 2 . Ballistic Cannon . | . . . Launcher 1 | . 1 . Special Weapon 1 | . 1 . Impact Weapon . | . . . Slashing Weapon . | . . . Piercing Weapon . | . . . Special Melee Weapon . | . . . Unidentified Prototypes . | . . . Parts Lost 7 | . 3 4 Power 2 | . 2 . Propulsion 2 | . . 2 Utility 1 | . 1 . Weapon 2 | . . 2 Highest Loss Streak 4 | . 1 4 To Critical Strikes . | . . . Average Slot Usage (%) 96 | . 95 98 Engine 14 | . 14 14 Treads 27 | . 28 27 Device 6 | . 7 . Storage 14 | . 14 14 Processor 4 | . 2 14 Energy Gun 1 | . 1 . Energy Cannon 12 | . 12 13 Ballistic Gun 14 | . 14 14 Peak Build Rating 13 | 7 13 13 Average Rating 11 | 6 11 12 On Entrance 6 | . 7 13 Naked Turns . | . . . Heaviest Build 32 | 12 32 32 Greatest Support 46 | 40 46 46 Greatest Overweight (x) 9 | . . 9 Average Overweight (x) . | . . . Largest Inventory Capacity 15 | 8 15 15 Average Capacity 14 | 7 14 15 Most Carried 15 | 4 15 15 Average Carried 13 | 2 13 14 Final Capacity 15 | 8 15 15 Final Carried 15 | 4 14 15 Class Distribution -------------------- 100% | Mutant Dominant Class ---------------- Mutant | -10/Materials Mutant | -10/Mines Resources | -11 -10 -10 ----------- Run | Yrd Mat Min Matter Collected 629 | 263 366 . Remotely . | . . . Salvage Created 729 | 98 631 . Parts 62 | 8 54 . Haulers Intercepted . | . . . Recyclers Shooed . | . . . Parts Field Recycled . | . . . Retrieved Matter . | . . . Parts Self-Destructed . | . . . Prevented . | . . . Kills | -11 -10 -10 ------- Run | Yrd Mat Min Combat Hostiles Destroyed 14 | . 14 . Guns 4 | . 4 . Cannons 7 | . 7 . AOE 3 | . 3 . Classes Destroyed 8 | 2 6 . Worker 2 | . 2 . Builder 1 | . 1 . Tunneler 3 | 2 1 . Recycler 2 | 1 1 . Operator 1 | . 1 . Watcher 3 | . 3 . Swarmer 6 | . 6 . Grunt 8 | . 8 . Best Kill Streak 4 | 2 4 . Combat Bots Only 3 | . 3 . Max Kills in Single Turn 2 | 1 2 . Gunslinging . | . . . Exploded 1 | . 1 . Melee . | . . . Uniques/NPCs Destroyed . | . . . Combat | -11 -10 -10 -------- Run | Yrd Mat Min Hostile Shots Fired 76 | . 60 16 Missed 13 | . 11 2 Damage Taken 1189 | . 512 677 Core 259 | . 63 196 Absorbed by Shields . | . . . Core Remaining (%) 100 | 100 . . Volleys Fired 57 | 8 49 . Largest 2 | 2 2 . Hottest 91 | 40 91 . Shots Fired 101 | 16 85 . Gun 61 | 16 45 . Cannon 30 | . 30 . Launcher 4 | . 4 . Special 6 | . 6 . Kinetic 53 | 16 37 . Thermal 44 | . 44 . Explosive 4 | . 4 . Electromagnetic . | . . . Robot Hit Streak 12 | 9 12 . Robot Miss Streak 4 | 1 4 . Penetration Max . | . . . Secondary Targets . | . . . Shots Hit Robots 56 | 11 45 . Core Hits 32 | 5 27 . Critical Kills . | . . . Critical Parts Destroyed . | . . . Critical Strikes . | . . . Melee Attacks . | . . . Impact . | . . . Slashing . | . . . Piercing . | . . . Sneak Attacks . | . . . Combat Hostiles . | . . . Follow-up Attacks . | . . . Damage Inflicted 1047 | 137 910 . Guns 452 | 137 315 . Cannons 466 | . 466 . Explosions 122 | . 122 . Melee . | . . . Ramming 3 | . 3 . Kinetic 399 | 137 262 . Thermal 523 | . 523 . Explosive 122 | . 122 . Electromagnetic . | . . . Impact . | . . . Slashing . | . . . Piercing . | . . . Highest Corruption . | . . . Average Corruption . | . . . Corruption Purged . | . . . Corruption Blocked . | . . . Overload Shots . | . . . Overflow Damage 32 | . 32 . Projectiles 16 | . 16 . Explosions 16 | . 16 . Melee . | . . . Knockbacks . | . . . Impact . | . . . Kinetic . | . . . Secondary . | . . . Self-Inflicted Damage . | . . . Shots . | . . . Rammed 1 | . 1 . Targets Rammed 1 | . 1 . Kicked . | . . . Crushed . | . . . Highest Temperature 159 | . 159 . Average Temperature 45 | . 45 . Received Heat Transfer 114 | . 114 . Siege Activations . | . . . Robots Corrupted . | . . . Combat Hostiles . | . . . Parts Fried . | . . . Impact Corruptions . | . . . Robots Melted . | . . . Combat Hostiles . | . . . Parts Melted 1 | . 1 . Heat Transferred 964 | . 964 . Parts Sabotaged . | . . . Parts Stolen . | . . . Parts Stripped . | . . . Power Chain Reactions . | . . . Alert | -11 -10 -10 ------- Run | Yrd Mat Min Peak Influence 228 | 15 228 . Initial 9 | . 9 . Average 60 | 9 73 . Maximum Alert Level 1 | . 1 . Low Security (%) 92 | 100 90 100 Level 1 7 | . 9 . Level 2 . | . . . Level 3 . | . . . Level 4 . | . . . Level 5 . | . . . High Security . | . . . Max Security . | . . . Squads Dispatched 2 | . 2 . Investigation 2 | . 2 . Extermination . | . . . Reinforcement . | . . . Assault . | . . . Garrison . | . . . Intercept . | . . . Searches Triggered . | . . . Construction Impeded . | . . . Haulers Reinforced . | . . . Active Scanning Responses . | . . . Cargo Convoy Interrupts . | . . . Stealth | -11 -10 -10 --------- Run | Yrd Mat Min Distress Signals . | . . . Communications Jammed . | . . . Distress Signals . | . . . Times Spotted 21 | . 19 2 Peak Tracking Total 4 | . 4 2 Tactical Retreats . | . . . Traps | -11 -10 -10 ------- Run | Yrd Mat Min Traps Triggered 4 | . 3 1 Indirectly . | . . . Trap Hack Attempts . | . . . Triggered . | . . . Disarmed . | . . . Reprogrammed . | . . . Reused . | . . . Traps Extracted . | . . . Installed . | . . . Triggered . | . . . Machines | -11 -10 -10 ---------- Run | Yrd Mat Min Machines Disabled 3 | . 3 . Max in Single Turn 1 | . 1 . Machines Repaired . | . . . Machines Dismantled . | . . . Machines Sabotaged . | . . . Overloaded Fab Kills . | . . . Hacking | -11 -10 -10 --------- Run | Yrd Mat Min Machines Accessed 9 | . 8 1 Terminals 7 | . 7 . Fabricators . | . . . Repair Stations . | . . . Recycling Units 1 | . 1 . Scanalyzers . | . . . Garrison Access . | . . . Total Hacks 26 | . 25 1 Successful 14 | . 13 1 Failed 11 | . 11 . Catastrophic . | . . . Database Lockouts 1 | . 1 . Manual 9 | . 9 . Terminals 24 | . 24 . Fabricators . | . . . Repair Stations . | . . . Recycling Units 1 | . 1 . Scanalyzers . | . . . Garrison Access . | . . . Terminal Hacks 13 | . 12 1 Robot Analysis 3 | . 3 . Prototype ID Bank 1 | . 1 . Open Door 1 | . . 1 Branch Access Points 1 | . 1 . Locate Traps 4 | . 4 . Hauler Manifests 1 | . 1 . Registered Components 1 | . 1 . Zone Layout 1 | . 1 . Fabricator Hacks . | . . . Repair Station Hacks . | . . . Recycling Unit Hacks 1 | . 1 . Report Inventory 1 | . 1 . Scanalyzer . | . . . Garrison Access Hacks . | . . . Unauthorized Hacks . | . . . Terminals . | . . . Fabricators . | . . . Repair Stations . | . . . Recycling Units . | . . . Scanalyzers . | . . . Garrison Access . | . . . Data Cores Recovered . | . . . Used . | . . . Hacking Detections 5 | . 5 . Full Trace Events 2 | . 2 . Feedback Events . | . . . Feedback Blocked . | . . . Robot Schematics Acquired . | . . . Robots Built . | . . . Authchips . | . . . Time . | . . . Total Robot Build Rating . | . . . Part Schematics Acquired . | . . . Parts Built . | . . . Authchips . | . . . Time . | . . . Total Part Build Rating . | . . . Parts Repaired . | . . . Time . | . . . Parts Recycled . | . . . Recycled Matter . | . . . Retrieved Matter . | . . . Retrieved Components . | . . . Parts Scanalyzed . | . . . Part Schematics Acquired . | . . . Parts Damaged . | . . . Bothacking | -11 -10 -10 ------------ Run | Yrd Mat Min Used RIF Installer . | . . . Robots Hacked . | . . . Non-combat . | . . . Combat . | . . . Robot Hacks Applied . | . . . Relay Couplers Released . | . . . Fabnet Peak Effective % . | . . . Robots Rewired . | . . . Allies Hacked . | . . . Hacks Repelled . | . . . Allies | -11 -10 -10 -------- Run | Yrd Mat Min Total Allies 3 | . . 3 Largest Group 3 | . . 3 Highest-Rated Group 40 | . . 40 Highest-Rated Ally 16 | . . 16 Total Orders . | . . . Ally Attacks 1 | . . 1 Total Damage 14 | . . 14 Kills . | . . . Allies Corrupted . | . . . Allies Melted . | . . . Intel | -11 -10 -10 ------- Run | Yrd Mat Min Robot Analysis Total 3 | . 3 . Derelict Logs Recovered 1 | . . 1 Drone Launches . | . . . Drone Recoveries . | . . . Exploration | -11 -10 -10 ------------- Run | Yrd Mat Min Turns Passed 2913 | 209 2401 303 Spaces Moved 1649 | 113 1353 183 Core 7 | 5 . 2 Treads 1626 | 92 1353 181 Legs 16 | 16 . . Wheels . | . . . Hover . | . . . Flight . | . . . Fastest Speed 50 | 50 160 160 Average Speed 159 | 149 160 164 Slowest Speed 500 | 160 160 500 Overloaded Moves . | . . . Propulsion Burnouts . | . . . Robots Hopped . | . . . Cave-ins Triggered . | . . . Exploration Rate (%) 45 | 7 96 34 Regions Visited 2 Branch Regions 1 Pre-discovered Areas . | . . . Known Exits Taken 1 | . 1 . Unknown Exits Taken 1 | 1 . . Scrap Searched . | . . . Spaces Dug . | . . . Terrain Destroyed 3 | . 3 . Melee . | . . . Projectile . | . . . AOE 3 | . 3 . Terrain Rammed . | . . . Walls Destroyed . | . . . Machines Disabled . | . . . Actions | -11 -10 -10 --------- Run | Yrd Mat Min Total 1830 | 134 1507 189 Wait 54 | 1 49 4 Move 1647 | 112 1352 183 Hop . | . . . Pick Up 27 | 4 22 1 Fast Attach 8 | 7 1 . Attach 5 | . 5 . Detach 2 | . 2 . Swap 14 | 2 11 1 Drop 15 | . 15 . Fire 57 | 8 49 . Melee . | . . . Ram . | . . . Kick . | . . . Crush 1 | . 1 . Escape Stasis . | . . . Rewire . | . . . Trap . | . . . Miscellaneous . | . . . Route ------- -11/Scrapyard -10/Materials (discovered 5 exits: *Mat x3 / *Min x2) -10/Mines (discovered 2 exits: *Mat x2) History --------- Turn | Location | Event 20 | -11/Scrapyard | Discovered new exit (range 16) 210 | -11/Scrapyard | Entered Materials 317 | -10/Materials | Build established: Mutant 400 | -10/Materials | Discovered new exit (range 12) 745 | -10/Materials | Discovered new exit (range 10) 934 | -10/Materials | Central database locked down 1047 | -10/Materials | Discovered new exit (range 13) 1149 | -10/Materials | Discovered new exit (range 13) 1797 | -10/Materials | Discovered new exit (range 14) 2191 | -10/Materials | Identified exit to Materials 2440 | -10/Materials | Identified exit to Mines 2611 | -10/Materials | Entered Mines 2620 | -10/Mines | Met a Derelict who couldn't figure out how to use a Trap Extractor 2709 | -10/Mines | Discovered exit to Materials (range 7) 2741 | -10/Mines | Discovered exit to Materials (range 7) 2764 | -10/Mines | Assisted by bots powering up and referring to "LRC-V3" 2889 | -10/Mines | Assembled infested the area 2890 | -10/Mines | Learned Materials emergency access door positions 2904 | -10/Mines | Core integrity fell below 50% 2913 | -10/Mines | Core integrity fell below 20% 2914 | -10/Mines | Destroyed by D-53 Grenadier with Mini Grenade Launcher Last Messages --------------- 02902_ U-05 Engineer builds a Wall. 02904_ U-05 Engineer lays Concrete. 02904_ K-01 Serf collects debris. 02905_ The unstable cave ceiling collapses. 02905_ Imp. Treads destroyed. 02905_ Particle Cannon destroyed. 02905_ U-05 Engineer builds a Wall. 02907_ Imp. Treads destroyed. 02907_ K-01 Serf collects debris. 02907_ U-05 Engineer lays Concrete. 02908_ U-05 Engineer builds a Wall. 02909_ The unstable cave ceiling collapses. 02909_ U-05 Engineer destroyed. 02911_ The unstable cave ceiling collapses. 02911_ K-01 Serf collects debris. 02911_ R-06 Scavenger collects Aluminum Leg. 02912_ K-01 Serf destroyed. 02912_ U-05 Engineer builds a Wall. 02914_ The unstable cave ceiling collapses. 02914_ Shotgun destroyed. Map ----- +----------------------------------------------------+ | ##???## ##??###?????????????????????????????? | | ###?????## ### ##????????????????????????????? | | ##???????## #????????????????????????????? | | ????###### #????????????????????????????? | | ##??# #????????????????????????????? | | ##?# ##????????????????????????????? | | #?# < ###?????????????????????????????? | | #?#### ## ##???????????????????????????????? | | ##????####### ##???????????????????????????????? | | #??????????## ##??????????????????????????????? | | #??####????# #??????????????????????????????? | | #?## ###### #??????????????????????????????? | | #?# #??????????? ????????????????? | | ### ##????????? ??????????????? | | ####### ##????????t ??????????????? | | #### ##????## #???????? ???????????????? | | ???## ##????## #??????? ????????????????? | | ????# #?????#t ##?????? ?????????????????? | | ????## <%####### #?????# #?????????????????? | | ????## # #????# #?????????????????? | | ???## #### #?????????????????? | | ???# t r # # #?????????????????? | | ???# #??????????????????? | | ???## #???????????????????? | | ????## d #???????????????????? | | ?????## @ #???????????????????? | | ??????# d #???????????????????? | | ??????## # ! %! #???????????????????? | | ???????##### *% ?????????????? | | ???????????# ## #???????????? | | ???????????# u ###### ##???????????? | | ???????????##### # # ##???????#????????????? | | ??????????????## ##### ##?????????????????????? | | ???????????????# ????## ###??????????????????????? | | ???????????????# ?????###????????????????????????? | | ???????????????##????????????????????????????????? | | ?????????????????????????????????????????????????? | | ?????????????????????????????????????????????????? | | ?????????????????????????????????????????????????? | | ?????????????????????????????????????????????????? | | ?????????????????????????????????????????????????? | | ?????????????????????????????????????????????????? | | ?????????????????????????????????????????????????? | | ?????????????????????????????????????????????????? | | ?????????????????????????????????????????????????? | | ?????????????????????????????????????????????????? | | ?????????????????????????????????????????????????? | | ?????????????????????????????????????????????????? | | ?????????????????????????????????????????????????? | | ?????????????????????????????????????????????????? | +----------------------------------------------------+ Best States ------------- Heat Dissipation 25 Energy Generation 10 Energy Capacity 250 Matter Stores 300 Matter Capacity 300 Sight Range 16 Terrain Scan Density 10 Evasion (%) 45 Recoil Reduction 2 Item Schematics ----------------- None Robot Schematics ------------------ None Fabricated ------------ Nothing Alien Tech Used ----------------- None Achievements -------------- None Challenges ------------ None Game ------ Seed BombPhysicsAutohacker Manual? 0 Play Time 00:21:36 Cumulative 31.2 hours Start 2025.03.29 @ 16:03:15 End 2025.03.29 @ 16:23:08 Sessions 1 Manual Loads 0 Difficulty Rogue Special Mode None Game No. 21 Rogue 17 Adventurer 4 Explorer 0 Win Type - Total 0 Types 0/0/0/0/0/0/0/0/0 Lore% 10 Gallery% 19 Achievement% 19 Wizard Run 0 Options --------- Layout 0 ASCII 0 Keyboard 1 Movement Vi Keybinds 0 Fullscreen 1 Font 24/Crisp Map View 76x50 Zoom Use 0% Tactical HUD 1 Map Filters NONE Filters NONE Steam 1 RUN: 352018f9-b67e-4ec8-9e47-5cda41a70e39